bitfinex-derivatives/quotes_BTCF0:USTF0_20250429
["timestamp","ask_amount","ask_price","bid_price","bid_amount"]
[1745938526113,0.2102744,95092.0,95091.0,0.277661]
[1745938526314,0.3056744,95092.0,95091.0,0.277661]
[1745938528218,0.3086744,95092.0,95091.0,0.0684]
[1745938528424,0.3116744,95092.0,95091.0,0.2786722]
[1745938529015,0.3116744,95092.0,95091.0,0.33181475]
[1745938529313,0.4316744,95092.0,95091.0,0.33181475]
[1745938530218,0.3116744,95092.0,95091.0,0.33181475]
[1745938531121,0.3116744,95092.0,95091.0,0.12154255]
[1745938531516,0.3116744,95092.0,95091.0,0.33181475]
[1745938533317,0.3116744,95092.0,95091.0,0.34807491]
[1745938534125,0.3116744,95092.0,95091.0,0.33181475]
[1745938534326,0.3116744,95092.0,95091.0,0.34810353]
[1745938534527,0.3116744,95092.0,95091.0,0.28070353]
[1745938535427,0.3116744,95092.0,95091.0,0.28073281]
[1745938537018,0.3116744,95092.0,95091.0,0.07046061]
[1745938537225,0.3116744,95092.0,95091.0,0.28073281]
[1745938539228,0.3116744,95092.0,95091.0,0.07046061]
[1745938539425,0.3116744,95092.0,95091.0,0.28073281]
[1745938539625,0.3116744,95092.0,95091.0,0.07046061]
[1745938539927,0.3116744,95092.0,95091.0,0.28073281]
[1745938540129,0.4316744,95092.0,95091.0,0.28073281]
[1745938540325,0.4316744,95092.0,95091.0,0.07046061]
[1745938540825,0.2103076,95075.0,95074.0,0.21802478]
[1745938541014,0.2103076,95075.0,95074.0,0.2775898]
[1745938541219,0.2103076,95075.0,95074.0,0.28532369]
[1745938541415,0.2103076,95075.0,95074.0,0.33832923]
[1745938541619,0.3047076,95075.0,95074.0,0.33832923]
[1745938542221,0.3047076,95075.0,95074.0,0.34032923]
[1745938544522,0.292381,95075.0,95074.0,0.34032923]
[1745938546032,0.292381,95075.0,95074.0,0.38842923]
[1745938549932,0.292381,95075.0,95074.0,0.43712923]
[1745938550640,0.0525706,95088.0,95087.0,0.2102692]
[1745938550935,0.3154281,95088.0,95087.0,0.2102692]
[1745938551323,0.3626281,95088.0,95087.0,0.2102692]
[1745938551929,0.3666281,95088.0,95087.0,0.2570692]
[1745938553828,0.4133281,95088.0,95087.0,0.2570692]
[1745938556126,0.5333281,95088.0,95087.0,0.2570692]
[1745938556832,0.5333281,95088.0,95087.0,0.2112692]
[1745938560539,0.5333281,95088.0,95087.0,0.001]
[1745938560941,0.5333281,95088.0,95087.0,0.2112811]
[1745938561135,0.5333281,95088.0,95087.0,0.5720811]
[1745938561535,0.4807575,95088.0,95087.0,0.5720811]
[1745938561837,0.4807575,95088.0,95087.0,0.6195811]
[1745938564735,0.4807575,95088.0,95087.0,0.6661811]
[1745938565738,0.2179,95088.0,95087.0,0.6661811]
[1745938565937,0.4281788,95088.0,95087.0,0.6661811]
[1745938566143,0.3081788,95088.0,95087.0,0.6195811]
[1745938566844,0.3081788,95088.0,95087.0,0.6185811]
[1745938573449,0.3081788,95088.0,95087.0,0.6655811]
[1745938578055,0.3081788,95088.0,95087.0,0.49534754]
[1745938579556,0.3081788,95088.0,95087.0,0.3047811]
[1745938581255,0.0979,95088.0,95061.0,0.4133841]
[1745938581445,0.2103076,95075.0,95073.0,0.21372395]
[1745938581645,0.2103098,95074.0,95073.0,0.21372395]
[1745938581854,0.0453,95074.0,95073.0,0.48516616]
[1745938582050,0.3154369,95084.0,95083.0,0.2102855]
[1745938582647,0.3621369,95084.0,95083.0,0.2102855]
[1745938583051,0.2102899,95083.0,95082.0,0.0448]
[1745938583359,0.2102965,95080.0,95079.0,0.5710971]
[1745938584350,0.2102965,95080.0,95079.0,0.6158971]
[1745938584547,0.0475,95082.0,95081.0,0.2102943]
[1745938584854,0.0525617,95103.0,95095.0,0.2102634]
[1745938585054,0.31714351,95096.0,95095.0,0.2102634]
[1745938585467,0.10688231,95096.0,95095.0,0.3010634]
[1745938585953,0.31714351,95096.0,95095.0,1.8010634]
[1745938586156,0.10688231,95096.0,95095.0,1.8010634]
[1745938586355,0.0525571,95111.0,95105.0,0.2102413]
[1745938586561,0.0525576,95110.0,95105.0,0.5710413]
[1745938586750,0.2102344,95109.0,95105.0,0.5710413]
[1745938586953,0.0483,95113.0,95105.0,0.5710413]
[1745938587152,0.2102328,95109.0,95105.0,0.6199413]
[1745938587461,0.14651078,95106.0,95105.0,0.6209413]
[1745938587653,0.14651078,95106.0,95105.0,0.6653413]
[1745938588261,0.35674988,95106.0,95105.0,0.05371134]
[1745938588464,0.3159391,95106.0,95105.0,0.26395264]
[1745938591363,0.013,95106.0,95105.0,0.26395264]
[1745938591565,0.013,95106.0,95105.0,0.67245264]
[1745938592264,0.013,95106.0,95105.0,0.79245264]
[1745938594762,0.0466,95111.0,95110.0,0.2102302]
[1745938594962,0.0466,95111.0,95110.0,0.2772302]
[1745938595664,0.0466,95111.0,95110.0,0.3727302]
[1745938596054,0.0526,95111.0,95110.0,1.8737302]
[1745938596265,0.0475,95114.0,95113.0,0.2102236]
[1745938596459,0.0525421,95138.0,95113.0,0.2102236]
[1745938596460,0.5719728,95136.0,95135.0,0.210175]
[1745938596762,0.001,95136.0,95135.0,0.210175]
[1745938597558,0.001,95136.0,95135.0,0.22584583]
[1745938598168,0.0485,95136.0,95135.0,0.22584583]
[1745938598359,0.0485,95136.0,95135.0,0.23284583]
[1745938598758,0.0485,95136.0,95135.0,0.22584583]
[1745938598961,0.0495,95136.0,95135.0,0.23584583]
[1745938599268,0.0495,95136.0,95135.0,0.24484583]
[1745938599565,0.3070728,95136.0,95135.0,0.03467083]
[1745938600264,0.3070728,95136.0,95135.0,0.29822873]
[1745938600472,0.3070728,95136.0,95135.0,0.28272259]
[1745938602067,0.0969,95136.0,95135.0,0.28272259]
[1745938603367,0.3070728,95136.0,95135.0,0.28272259]
[1745938603761,0.0969,95136.0,95135.0,0.28272259]
[1745938604762,0.3070728,95136.0,95135.0,0.28272259]
[1745938604956,0.0969,95136.0,95135.0,0.28272259]
[1745938605862,0.3070728,95136.0,95135.0,0.28272259]
[1745938607869,0.0969,95136.0,95135.0,0.28272259]
[1745938608559,0.3070728,95136.0,95135.0,0.28272259]
[1745938608960,0.0969,95136.0,95135.0,0.28272259]
[1745938609971,0.3070728,95136.0,95135.0,0.28272259]
[1745938610173,0.0969,95136.0,95135.0,0.28272259]
[1745938610661,0.1009,95136.0,95135.0,0.27372259]
[1745938610862,0.0999,95136.0,95135.0,0.26372259]
[1745938611062,0.0545,95136.0,95135.0,0.62452259]
[1745938611275,0.0455,95141.0,95140.0,0.2101639]
[1745938611472,0.0455,95141.0,95140.0,1.7101639]
[1745938611662,0.0015,95150.0,95149.0,0.210144]
[1745938611867,0.0015,95150.0,95149.0,0.277144]
[1745938612473,0.0015,95150.0,95149.0,0.33095986]
[1745938612661,0.0015,95150.0,95149.0,0.37745986]
[1745938613566,0.0455,95155.0,95154.0,0.210133]
[1745938613761,0.0906,95155.0,95154.0,0.210133]
[1745938614469,0.0906,95155.0,95154.0,0.303233]
[1745938614665,0.0936,95155.0,95154.0,0.31922086]
[1745938615170,0.0936,95155.0,95154.0,0.27082086]
[1745938615376,0.3037308,95155.0,95154.0,0.01598786]
[1745938615567,0.2101418,95150.0,95149.0,0.05381586]
[1745938615762,0.2101418,95150.0,95141.0,0.067]
[1745938615763,0.2101595,95142.0,95141.0,0.2771617]
[1745938615963,0.2101595,95142.0,95141.0,0.29295319]
[1745938616270,0.3301595,95142.0,95141.0,0.34677956]
[1745938616880,0.3301595,95142.0,95141.0,0.13661786]
[1745938617573,0.3301595,95142.0,95141.0,0.34677956]
[1745938618365,0.3301595,95142.0,95141.0,0.34777956]
[1745938619876,0.6909595,95142.0,95141.0,0.07061786]
[1745938620973,0.6909595,95142.0,95141.0,0.07125136]
[1745938621180,0.6909595,95142.0,95141.0,0.28141306]
[1745938621376,0.4808,95142.0,95141.0,0.28141306]
[1745938621564,0.6909595,95142.0,95141.0,0.28141306]
[1745938621769,0.6909595,95142.0,95141.0,0.29738773]
[1745938621965,0.12,95142.0,95141.0,0.29738773]
[1745938622274,0.0451,95144.0,95143.0,0.2101573]
[1745938622473,0.03278273,95144.0,95143.0,0.22658078]
[1745938623078,0.03278273,95144.0,95143.0,0.24236527]
[1745938623479,0.03378273,95144.0,95143.0,0.24236527]
[1745938624285,0.03378273,95144.0,95143.0,0.24236493]
[1745938626284,0.03378273,95144.0,95143.0,0.24236496]
[1745938627187,0.03378273,95144.0,95143.0,0.22639029]
[1745938628385,0.24393783,95144.0,95143.0,0.22639029]
[1745938629682,0.24393783,95144.0,95143.0,0.01642317]
[1745938629880,0.24393783,95144.0,95143.0,0.22658047]
[1745938631281,0.24393783,95144.0,95143.0,0.29346047]
[1745938632082,0.03378273,95144.0,95143.0,0.29346047]
[1745938632289,0.001,95144.0,95143.0,0.65426047]
[1745938632593,0.001,95144.0,95143.0,0.69916047]
[1745938634386,0.254544,95149.0,95148.0,0.22656937]
[1745938634787,0.254544,95149.0,95148.0,0.27146937]
[1745938635395,0.210144,95149.0,95148.0,0.27146937]
[1745938635594,0.3608,95150.0,95149.0,0.210144]
[1745938635790,0.3608,95150.0,95149.0,0.27446717]
[1745938636689,0.5719418,95150.0,95149.0,0.27446717]
[1745938641395,0.5719418,95150.0,95149.0,0.34134717]
[1745938641597,0.5719418,95150.0,95149.0,0.29344717]
[1745938641787,0.5719418,95150.0,95149.0,0.01642317]
[1745938642189,0.6919418,95150.0,95149.0,0.01642317]
[1745938642798,0.7402418,95150.0,95149.0,0.01642317]
[1745938643393,0.7402418,95150.0,95141.0,0.26398807]
[1745938643394,0.2101595,95142.0,95141.0,0.26398807]
[1745938643593,0.2101595,95142.0,95141.0,0.22636387]
[1745938643991,0.2101595,95142.0,95141.0,0.01620217]
[1745938644192,0.88586751,95142.0,95141.0,0.01620217]
[1745938644599,0.88586751,95142.0,95141.0,0.01720217]
[1745938645202,0.210175,95135.0,95134.0,0.00157662]
[1745938645505,0.570975,95135.0,95134.0,0.00157662]
[1745938645694,0.67609101,95135.0,95134.0,0.00157662]
[1745938646103,0.88589101,95135.0,95134.0,0.00157662]
[1745938646598,0.88689101,95135.0,95134.0,0.00157662]
[1745938646998,0.88589101,95135.0,95134.0,0.00157662]
[1745938647193,0.2101993,95124.0,95123.0,0.2102006]
[1745938647401,0.2102037,95122.0,95121.0,0.3202833]
[1745938647902,0.2102037,95122.0,95121.0,0.15408296]
[1745938648103,0.3749037,95122.0,95121.0,0.15408296]
[1745938648294,0.4209037,95122.0,95121.0,0.36428886]
[1745938648695,0.4209037,95122.0,95121.0,0.11088296]
[1745938648895,0.2102302,95111.0,95110.0,0.262782]
[1745938649099,0.2102302,95111.0,95110.0,0.35367003]
[1745938650299,0.3011302,95111.0,95110.0,0.35367003]
[1745938651103,0.3011302,95111.0,95110.0,0.35467003]
[1745938651505,0.3011302,95111.0,95110.0,0.35667003]
[1745938652602,0.3011302,95111.0,95110.0,0.35567003]
[1745938654510,0.3011302,95111.0,95110.0,0.35467003]
[1745938654698,0.3011302,95111.0,95110.0,0.35567003]
[1745938655402,0.2102302,95110.0,95109.0,0.0078527]
[1745938655603,0.2102391,95106.0,95102.0,0.2102475]
[1745938655799,0.2102391,95106.0,95103.0,0.0428]
[1745938655999,0.2102391,95106.0,95105.0,0.04428474]
[1745938656201,0.2102391,95106.0,95105.0,0.21129276]
[1745938656501,0.2567391,95106.0,95105.0,0.21129276]
[1745938656693,0.2567391,95106.0,95105.0,0.00105146]
[1745938657302,0.2567391,95106.0,95105.0,0.04506889]
[1745938657702,0.2567391,95106.0,95105.0,0.04706889]
[1745938657906,0.2567391,95106.0,95105.0,0.04806889]
[1745938658103,0.2567391,95106.0,95105.0,0.30391019]
[1745938658403,0.2567391,95106.0,95105.0,0.31167975]
[1745938660206,0.2567391,95106.0,95105.0,0.32784308]
[1745938660815,0.3608,95112.0,95111.0,0.210228]
[1745938661103,0.2102198,95118.0,95117.0,0.2627634]
[1745938661710,0.3005198,95118.0,95117.0,0.2627634]
[1745938662505,0.3015198,95118.0,95117.0,0.2102103]
[1745938663513,0.0913,95118.0,95117.0,0.2102103]
[1745938663714,0.3015125,95118.0,95117.0,0.2102103]
[1745938664012,0.3005125,95118.0,95117.0,0.2102103]
[1745938664200,0.3005125,95118.0,95117.0,0.2554103]
[1745938664705,0.3005125,95118.0,95117.0,0.2584103]
[1745938665316,0.3005125,95118.0,95117.0,0.0472]
[1745938665526,0.4056445,95118.0,95117.0,0.002]
[1745938665714,0.2102368,95107.0,95106.0,0.0432]
[1745938665909,0.5710368,95107.0,95106.0,0.0432]
[1745938666509,0.6622368,95107.0,95106.0,0.0432]
[1745938666906,0.6622368,95107.0,95106.0,0.0462]
[1745938667317,0.6622368,95107.0,95106.0,0.003]
[1745938668113,0.6622368,95107.0,95106.0,0.0482]
[1745938672418,0.6622368,95107.0,95106.0,0.06408173]
[1745938673113,0.7822368,95107.0,95106.0,0.06408173]
[1745938673411,0.7822368,95107.0,95106.0,0.06408078]
[1745938674315,0.2102479,95103.0,95102.0,0.210246]
[1745938674709,0.2976479,95103.0,95102.0,0.210246]
[1745938674906,0.2976479,95103.0,95102.0,0.25404644]
[1745938675622,0.2976479,95103.0,95102.0,0.26004644]
[1745938677406,0.2976479,95103.0,95102.0,0.30434644]
[1745938678519,0.2976479,95103.0,95102.0,0.31223814]
[1745938686221,0.2976479,95103.0,95102.0,0.32806786]
[1745938688614,0.2976479,95103.0,95102.0,0.32806652]
[1745938689419,0.2976479,95103.0,95102.0,0.07352052]
[1745938689623,0.2976479,95103.0,95102.0,0.02972008]
[1745938689921,0.2976479,95103.0,95102.0,0.0138917]
[1745938690126,0.4176479,95103.0,95102.0,0.0138917]
[1745938690725,0.2102567,95098.0,95097.0,0.00157733]
[1745938690929,0.2102877,95084.0,95081.0,0.0525734]
[1745938691120,0.5710877,95084.0,95083.0,0.22928891]
[1745938692127,0.6910877,95084.0,95083.0,0.22928891]
[1745938692330,0.6910877,95084.0,95083.0,0.23428891]
[1745938692819,0.6910877,95084.0,95083.0,0.2791297]
[1745938693126,0.5710877,95084.0,95083.0,0.3226297]
[1745938693317,0.5710877,95084.0,95083.0,0.3276297]
[1745938693517,0.5710877,95084.0,95083.0,0.29067156]
[1745938693717,0.5710877,95084.0,95083.0,0.07694761]
[1745938694719,0.5710877,95084.0,95083.0,0.12013646]
[1745938694922,0.5710877,95084.0,95083.0,0.07694761]
[1745938695127,0.5710877,95084.0,95083.0,0.03344761]
[1745938696119,0.6910877,95084.0,95083.0,0.03344761]
[1745938698233,0.5710877,95084.0,95083.0,0.03344761]
[1745938699227,0.5710877,95084.0,95083.0,0.01788265]
[1745938699424,0.5710877,95084.0,95083.0,0.03346198]
[1745938700027,0.5710877,95084.0,95083.0,0.01788265]
[1745938700225,0.6910877,95084.0,95083.0,0.01788265]
[1745938701231,0.5710877,95084.0,95083.0,0.01788265]
[1745938706522,0.5710877,95084.0,95083.0,0.06278265]
[1745938707523,0.5710877,95084.0,95083.0,0.07843745]
[1745938708032,0.5710877,95084.0,95083.0,0.06278265]
[1745938708240,0.5710877,95084.0,95083.0,0.07842067]
[1745938709129,0.5710877,95084.0,95083.0,0.07901244]
[1745938712633,0.5710877,95084.0,95083.0,0.28930234]
[1745938715138,0.5710877,95084.0,95083.0,0.07901244]
[1745938715442,0.6157877,95084.0,95083.0,0.07901244]
[1745938715831,0.6157877,95084.0,95083.0,0.28930234]
[1745938716943,0.6157877,95084.0,95083.0,0.07901244]
[1745938717539,0.6157877,95084.0,95083.0,0.12561244]
[1745938717838,0.6157877,95084.0,95083.0,0.07901244]
[1745938719040,0.6157877,95084.0,95083.0,0.12561244]
[1745938720146,0.6157877,95084.0,95083.0,0.07901244]
[1745938720438,0.6157877,95084.0,95083.0,0.07889829]
[1745938720843,0.6157877,95084.0,95083.0,0.28918819]
[1745938721139,0.5710877,95084.0,95083.0,0.28918819]
[1745938723943,0.0525684,95091.0,95090.0,0.2102722]
[1745938724246,0.21027,95092.0,95091.0,0.34207]
[1745938724547,0.21027,95092.0,95091.0,0.35818564]
[1745938725743,0.21027,95092.0,95091.0,0.36118564]
[1745938726248,0.21027,95092.0,95091.0,0.48125068]
[1745938726450,0.21027,95092.0,95091.0,0.3076343]
[1745938727949,0.21027,95092.0,95091.0,0.30747725]
[1745938729651,0.21027,95092.0,95091.0,0.44307725]
[1745938729845,0.21027,95092.0,95091.0,0.44308946]
[1745938730948,0.2554676,95094.0,95093.0,0.2102678]
[1745938731150,0.2102676,95094.0,95093.0,0.22630364]
[1745938731453,0.044,95095.0,95094.0,0.2102656]
[1745938731753,0.2542634,95095.0,95094.0,0.31630144]
[1745938732151,0.2542634,95095.0,95094.0,0.43630144]
[1745938734255,0.2542634,95095.0,95094.0,0.43930144]
[1745938734554,0.2542634,95095.0,95094.0,0.44130144]
[1745938737756,0.2542634,95095.0,95094.0,0.39800144]
[1745938738557,0.044,95095.0,95094.0,0.39800144]
[1745938738946,0.262812,95103.0,95102.0,0.2102457]
[1745938739150,0.262812,95103.0,95102.0,0.22628154]
[1745938739356,0.306512,95103.0,95102.0,0.34064154]
[1745938739550,0.2642789,95115.0,95114.0,0.2102214]
[1745938739755,0.3534789,95115.0,95114.0,0.22625724]
[1745938739951,0.3534789,95115.0,95114.0,0.01603584]
[1745938740346,0.2102457,95103.0,95102.0,0.06776]
[1745938740546,0.2102457,95103.0,95102.0,0.29371877]
[1745938740961,0.2102457,95103.0,95102.0,0.2790079]
[1745938741254,0.2102457,95103.0,95102.0,0.29471427]
[1745938741457,0.3003457,95103.0,95102.0,0.29371427]
[1745938742161,0.3003457,95103.0,95102.0,0.08346637]
[1745938742658,0.3003457,95103.0,95102.0,0.29371427]
[1745938742956,0.3003457,95103.0,95102.0,0.01670637]
[1745938743157,0.3003457,95103.0,95102.0,0.01770637]
[1745938744250,0.4203457,95103.0,95102.0,0.01770637]
[1745938747155,0.3003457,95103.0,95102.0,0.01770637]
[1745938750258,0.4203457,95103.0,95102.0,0.01843264]
[1745938750457,0.2628286,95097.0,95094.0,0.1193262]
[1745938750657,0.2102634,95095.0,95094.0,0.3295896]
[1745938751056,0.3002634,95095.0,95094.0,0.3295896]
[1745938752056,0.3002634,95095.0,95094.0,0.2648296]
[1745938752256,0.3002634,95095.0,95094.0,0.2668296]
[1745938752952,0.3002634,95095.0,95094.0,0.3139296]
[1745938754563,0.3002634,95095.0,95094.0,0.32990225]
[1745938755464,0.3002634,95095.0,95094.0,0.28280225]
[1745938756865,0.3002634,95095.0,95094.0,0.08673265]
[1745938757065,0.2102877,95084.0,95075.0,0.2113589]
[1745938757371,0.413372,95084.0,95075.0,0.0536287]
[1745938757663,0.2102988,95079.0,95078.0,0.27977403]
[1745938757854,0.2102988,95079.0,95078.0,0.28763874]
[1745938758454,0.3018988,95079.0,95078.0,0.49793974]
[1745938759062,0.3018988,95079.0,95078.0,0.55132295]
[1745938759264,0.3018988,95079.0,95078.0,0.55632295]
[1745938760164,0.3018988,95079.0,95078.0,0.60752295]
[1745938761057,0.0916,95079.0,95078.0,0.60752295]
[1745938761273,0.3018988,95079.0,95078.0,0.60752295]
[1745938762171,0.3018988,95079.0,95078.0,0.51450892]
[1745938762572,0.3018988,95079.0,95078.0,0.5300764]
[1745938764275,0.3018988,95079.0,95078.0,0.41003372]
[1745938765273,0.3018988,95079.0,95078.0,0.39450892]
[1745938766466,0.3018988,95079.0,95078.0,0.34730892]
[1745938768274,0.28957258,95079.0,95078.0,0.34730892]
[1745938768976,0.28957258,95079.0,95078.0,0.07024792]
[1745938769164,0.40957258,95079.0,95078.0,0.07024792]
[1745938770168,0.40957258,95079.0,95078.0,0.01686471]
[1745938770369,0.40957258,95079.0,95078.0,0.03258738]
[1745938771871,0.77037258,95079.0,95078.0,0.03258738]
[1745938775068,0.77037258,95079.0,95078.0,0.03261692]
[1745938775375,0.65037258,95079.0,95078.0,0.03261692]
[1745938776870,0.65037258,95079.0,95078.0,0.24291792]
[1745938777071,0.65037258,95079.0,95078.0,0.24284818]
[1745938777664,0.65037258,95079.0,95078.0,0.03254718]
[1745938782874,0.65037258,95079.0,95078.0,0.24284818]
[1745938783075,0.65037258,95079.0,95078.0,0.28814818]
[1745938784680,0.65037258,95079.0,95078.0,0.28793581]
[1745938785472,0.65037258,95079.0,95078.0,0.27246571]
[1745938788372,0.44007378,95079.0,95078.0,0.27246571]
[1745938788579,0.6759558,95087.0,95086.0,0.2102833]
[1745938789282,0.6759558,95087.0,95086.0,0.3302833]
[1745938789783,0.6759558,95087.0,95086.0,0.3362833]
[1745938790587,0.7213558,95087.0,95086.0,0.3362833]
[1745938791292,0.7213558,95087.0,95086.0,0.2162833]
[1745938791790,0.7213558,95087.0,95086.0,0.2627833]
[1745938792086,0.3082558,95087.0,95086.0,0.3827833]
[1745938793290,0.3082558,95087.0,95086.0,0.2627833]
[1745938794289,0.3082558,95087.0,95086.0,0.006]
[1745938794896,0.3082558,95087.0,95086.0,0.2162833]
[1745938795795,0.3082558,95087.0,95086.0,0.006]
[1745938796486,0.3082558,95087.0,95086.0,0.2162833]
[1745938799798,0.3082558,95087.0,95086.0,0.2610833]
[1745938800701,0.3082558,95087.0,95086.0,0.0508]
[1745938800896,0.3082558,95087.0,95086.0,0.2610833]
[1745938803196,0.2102855,95087.0,95086.0,0.3810833]
[1745938803498,0.2102468,95106.0,95105.0,0.2102346]
[1745938803692,0.2628071,95106.0,95105.0,0.2102346]
[1745938804095,0.2628071,95106.0,95105.0,1.5]
[1745938804600,0.2628071,95106.0,95105.0,1.7102413]
[1745938804794,0.3077071,95106.0,95105.0,1.7102413]
[1745938805187,0.3087071,95106.0,95105.0,1.7102413]
[1745938805995,0.3097071,95106.0,95105.0,1.7102413]
[1745938811093,0.3097071,95106.0,95105.0,1.5]
[1745938811301,0.0525634,95100.0,95082.0,0.052573]
[1745938811501,0.2102788,95088.0,95087.0,0.06664]
[1745938811705,0.210301,95078.0,95077.0,0.5247008]
[1745938812003,0.210301,95078.0,95077.0,0.6439161]
[1745938812200,0.210301,95078.0,95077.0,0.7639161]
[1745938812398,0.210301,95078.0,95077.0,0.77192526]
[1745938812707,0.210301,95078.0,95077.0,0.70528526]
[1745938812906,0.300801,95078.0,95077.0,0.77192526]
[1745938813104,0.300801,95078.0,95077.0,0.65192526]
[1745938813306,0.300801,95078.0,95077.0,2.15692526]
[1745938813606,0.300801,95078.0,95077.0,2.16192526]
[1745938814104,0.300801,95078.0,95077.0,1.94843765]
[1745938814699,0.300801,95078.0,95077.0,1.96387811]
[1745938815107,0.300801,95078.0,95077.0,1.85872751]
[1745938816594,0.300801,95078.0,95077.0,1.84328705]
[1745938819106,0.300801,95078.0,95077.0,1.63298675]
[1745938819305,0.300801,95078.0,95077.0,0.06634675]
[1745938820396,0.2103341,95063.0,95051.0,0.06668]
[1745938820599,0.2103341,95063.0,95062.0,0.05517113]
[1745938820600,0.5711341,95063.0,95062.0,0.05517113]
[1745938820799,0.2629321,95059.0,95058.0,0.210343]
[1745938821305,0.3518321,95059.0,95058.0,0.210343]
[1745938821604,0.0889,95059.0,95058.0,0.26214803]
[1745938821806,0.2628845,95075.0,95074.0,0.2103076]
[1745938822005,0.3515845,95075.0,95074.0,0.2103076]
[1745938823206,0.3960845,95075.0,95074.0,0.2103076]
[1745938830217,0.1332,95075.0,95074.0,0.2103076]
[1745938830520,0.0445,95075.0,95074.0,0.6762876]
[1745938830816,0.2628154,95101.0,95100.0,0.2102523]
[1745938831003,0.2628154,95101.0,95100.0,0.22571768]
[1745938831205,0.2628154,95101.0,95100.0,0.01546538]
[1745938831806,0.2628259,95098.0,95097.0,0.2628161]
[1745938832316,0.2102589,95097.0,95096.0,0.2553603]
[1745938832716,0.2563589,95097.0,95096.0,0.2553603]
[1745938832914,0.2563589,95097.0,95096.0,0.05166685]
[1745938833213,0.2102656,95094.0,95093.0,0.2102663]
[1745938833612,0.6236325,95094.0,95093.0,0.05159848]
[1745938833819,0.6236325,95094.0,95079.0,0.0472]
[1745938833820,0.2102855,95085.0,95084.0,0.06668]
[1745938834114,0.2103164,95071.0,95070.0,1.5]
[1745938834311,0.2103164,95071.0,95070.0,1.7769987]
[1745938834812,0.2103164,95071.0,95070.0,1.83068531]
[1745938835014,0.3026164,95071.0,95070.0,1.83068531]
[1745938835413,0.0923,95071.0,95070.0,1.83068531]
[1745938835812,0.3046164,95071.0,95070.0,1.83068531]
[1745938836411,0.0943,95071.0,95070.0,1.83068531]
[1745938836608,0.0943,95071.0,95070.0,1.87498531]
[1745938836813,0.3046164,95071.0,95070.0,1.87498531]
[1745938837410,0.0943,95071.0,95070.0,1.87498531]
[1745938837612,0.3046164,95071.0,95070.0,1.83068531]
[1745938839417,0.3046164,95071.0,95070.0,0.05368661]
[1745938839622,0.3046164,95071.0,95070.0,0.2103187]
[1745938839922,0.3046164,95071.0,95070.0,0.26208813]
[1745938842319,0.3608,95095.0,95087.0,0.0525697]
[1745938842515,0.3608,95095.0,95094.0,0.2102656]
[1745938842822,0.3608,95095.0,95094.0,1.7102656]
[1745938843214,0.3608,95095.0,95094.0,1.8302656]
[1745938843412,0.04947905,95104.0,95103.0,0.2102457]
[1745938843613,0.04947905,95104.0,95103.0,0.2768457]
[1745938844013,0.25972255,95104.0,95103.0,0.2768457]
[1745938844215,0.04947905,95104.0,95103.0,0.4416457]
[1745938844723,0.04947905,95104.0,95103.0,0.4436457]
[1745938845220,0.2987413,95105.0,95103.0,0.4436457]
[1745938845221,0.2987413,95105.0,95104.0,0.2102435]
[1745938845423,0.2535413,95105.0,95104.0,0.2540435]
[1745938845727,0.2535413,95105.0,95104.0,0.3206435]
[1745938846525,0.2535413,95105.0,95104.0,0.2550435]
[1745938846824,0.2535413,95105.0,95104.0,0.3216435]
[1745938847625,0.2535413,95105.0,95104.0,0.2550435]
[1745938847817,0.2535413,95105.0,95104.0,0.3226435]
[1745938848019,0.2535413,95105.0,95104.0,0.3216435]
[1745938848718,0.2535413,95105.0,95104.0,0.3206435]
[1745938848926,0.2535413,95105.0,95104.0,0.33702481]
[1745938849629,0.2535413,95105.0,95104.0,0.27042481]
[1745938849831,0.2535413,95105.0,95104.0,0.0601904]
[1745938850124,0.3005413,95105.0,95104.0,0.001]
[1745938850323,0.6613413,95105.0,95104.0,0.001]
[1745938851027,0.2102634,95095.0,95094.0,1.7102656]
[1745938851617,0.2573634,95095.0,95094.0,1.7102656]
[1745938851824,0.0471,95095.0,95094.0,1.72580506]
[1745938852024,0.2573634,95095.0,95094.0,1.72580506]
[1745938852327,0.0481,95095.0,95094.0,1.72580506]
[1745938852827,0.03577678,95095.0,95094.0,1.72580506]
[1745938853029,0.03577678,95095.0,95094.0,1.77300506]
[1745938853230,0.24604018,95095.0,95094.0,1.90886562]
[1745938853423,0.24704018,95095.0,95094.0,1.90886562]
[1745938853728,0.03677678,95095.0,95094.0,1.90886562]
[1745938853922,0.24704018,95095.0,95094.0,1.90886562]
[1745938854229,0.24604018,95095.0,95094.0,1.78886562]
[1745938854432,0.24504018,95095.0,95094.0,1.78886562]
[1745938854626,0.24504018,95095.0,95094.0,1.74166562]
[1745938854819,0.24504018,95095.0,95094.0,1.53140002]
[1745938855019,0.24504018,95095.0,95094.0,1.53240002]
[1745938855823,0.24504018,95095.0,95094.0,1.80926562]
[1745938856130,0.24604018,95095.0,95094.0,1.80926562]
[1745938856431,0.24604018,95095.0,95094.0,1.79240506]
[1745938857026,0.24604018,95095.0,95094.0,1.58213946]
[1745938857229,0.24704018,95095.0,95094.0,1.58213946]
[1745938857725,0.24704018,95095.0,95094.0,0.0312937]
[1745938858235,0.36704018,95095.0,95094.0,0.2415593]
[1745938858524,0.122,95095.0,95094.0,0.3467193]
[1745938858724,0.124,95095.0,95094.0,0.33096506]
[1745938859125,0.124,95095.0,95094.0,1.91906506]
[1745938859326,0.003,95095.0,95094.0,2.03906506]
[1745938859528,0.006,95095.0,95094.0,2.03906506]
[1745938859726,0.2162634,95095.0,95094.0,1.93390506]
[1745938859926,0.2162634,95095.0,95094.0,1.89090506]
[1745938860130,0.003,95095.0,95094.0,1.89190506]
[1745938860833,0.2539598,95097.0,95096.0,0.2102612]
[1745938861018,0.2539598,95097.0,95096.0,0.01553946]
[1745938861223,0.2539598,95097.0,95096.0,0.22580066]
[1745938862632,0.2549598,95097.0,95096.0,0.22580066]
[1745938863436,0.2559598,95097.0,95096.0,0.22580066]
[1745938864117,0.2559598,95097.0,95096.0,0.22608034]
[1745938865434,0.2569598,95097.0,95096.0,0.22608034]
[1745938865933,0.2559598,95097.0,95096.0,0.2102612]
[1745938866140,0.2549598,95097.0,95096.0,0.2102612]
[1745938866337,0.2559598,95097.0,95096.0,0.2102612]
[1745938866932,0.2549598,95097.0,95096.0,0.2102612]
[1745938867136,0.2559598,95097.0,95096.0,0.2102612]
[1745938868336,0.0982652,95097.0,95090.0,0.0525681]
[1745938868526,0.2102744,95090.0,95089.0,0.0666]
[1745938868835,0.2102744,95090.0,95089.0,0.2768766]
[1745938869035,0.3431744,95090.0,95089.0,0.2768766]
[1745938870834,0.1329,95090.0,95089.0,0.29243888]
[1745938871137,0.1329,95090.0,95089.0,0.50123888]
[1745938871138,0.0886,95090.0,95089.0,0.50123888]
[1745938872038,0.0886,95090.0,95089.0,0.50119888]
[1745938874940,0.0896,95090.0,95089.0,0.50119888]
[1745938875440,0.0906,95090.0,95089.0,0.50119888]
[1745938875942,0.3008744,95090.0,95089.0,0.41239888]